Cogmind - Beta 9.6 @@@ ROGUE MODE // 2020.08.13 @ 22:36:41 Player: badtoken Result: Destroyed by Y-45 Defender with Heavy Assault Rifle Performance ------------- Evolutions (1) 500 Regions Visited (3) 600 Robots Destroyed (29) 145 Value Destroyed (649) 649 Prototype IDs (0) 0 Alien Tech Used (0) 0 Bonus (0) 0 TOTAL SCORE: 1894 Bonus ------- None Cogmind --------- Core Integrity 0/400 Matter 92/300 Energy 100/100 System Corruption 0% Temperature Cool (0) Movement Core (300) Ox5 Location -9/Storage Parts ------- > --- POWER (1) -------- (None) > --- PROPULSION (3) --- (None) > --- UTILITY (2) ------ Large Storage Unit Improved Targeting Computer > --- WEAPON (3) ------- (None) > --- INVENTORY (10) --- Large Storage Unit Sensor Array Light Armor Plating Drone Bay (2/2) Drone Bay (2/2) Rocket Launcher Rocket Launcher Peak State ------------ > --- POWER ------------ Improved Ion Engine > --- PROPULSION ------- Aluminum Leg Aluminum Leg Aluminum Leg > --- UTILITY ---------- Large Storage Unit Improved Targeting Computer > --- WEAPON ----------- Autogun Autogun Autogun > --- INVENTORY -------- Light Ion Engine Large Storage Unit Sensor Array Light Armor Plating Drone Bay Drone Bay Autogun Rocket Launcher Rocket Launcher [Rating: 16] Favorites ----------- Power Improved Ion Engine Engine Improved Ion Engine Propulsion Aluminum Leg Leg Aluminum Leg Utility Large Storage Unit Storage Large Storage Unit Processor Targeting Computer Weapon Autogun Ballistic Gun Autogun Build | -11 -10 -9 -9 ------- Run | Scr Mat Mat Sto Slots Evolved 2 | . . 2 . Power . | . . . . Propulsion 1 | . . 1 . Utility . | . . . . Weapon 1 | . . 1 . Parts Attached 19 | 6 5 2 6 Power 3 | 1 . . 2 Engine 3 | 1 . . 2 Core . | . . . . Reactor . | . . . . Propulsion 4 | 2 . 1 1 Treads . | . . . . Leg 4 | 2 . 1 1 Wheel . | . . . . Hover . | . . . . Flight . | . . . . Utility 5 | 1 3 . 1 Device . | . . . . Storage 2 | 1 1 . . Processor 3 | . 2 . 1 Hackware . | . . . . Protection . | . . . . Artifact . | . . . . Weapon 7 | 2 2 1 2 Energy Gun . | . . . . Energy Cannon . | . . . . Ballistic Gun 7 | 2 2 1 2 Ballistic Cannon . | . . . . Launcher . | . . . . Special Weapon . | . . . . Impact Weapon . | . . . . Slashing Weapon . | . . . . Piercing Weapon . | . . . . Special Melee Weapon . | . . . . Unidentified Prototypes . | . . . . Parts Lost 9 | . . . 9 Power 2 | . . . 2 Propulsion 4 | . . . 4 Utility . | . . . . Weapon 3 | . . . 3 Highest Loss Streak 6 | . . . 6 Average Slot Usage (%) 97 | . 97 100 96 Engine 12 | . 14 11 10 Leg 30 | . 28 33 31 Storage 12 | . 14 11 11 Processor 11 | . 12 11 11 Ballistic Gun 30 | . 27 33 31 Naked Turns . | . . . . Heaviest Build 32 | 10 25 28 32 Greatest Support 30 | 20 20 30 30 Greatest Overweight (x) 7 | . 1 . 7 Average Overweight (x) . | . . . . Largest Inventory Capacity 10 | 6 10 10 10 Average Capacity 9 | 5 9 10 10 Most Carried 10 | 5 10 9 10 Average Carried 8 | 2 8 8 8 Final Capacity 10 | 6 10 10 10 Final Carried 10 | 4 10 8 7 Class Distribution -------------------- 52% | Gunner 42% | Mutant 5% | Scavenger-Gunner Dominant Class ---------------- Mutant | -10/Materials Gunner | -9/Materials Gunner | -9/Storage Resources | -11 -10 -9 -9 ----------- Run | Scr Mat Mat Sto Matter Collected 854 | 170 204 . 480 Remotely . | . . . . Salvage Created 913 | . 121 . 792 Parts 75 | . 15 . 60 Haulers Intercepted 1 | . . . 1 Recyclers Shooed 1 | . . . 1 Parts Field Recycled . | . . . . Retrieved Matter . | . . . . Parts Self-Destructed . | . . . . Prevented . | . . . . Kills | -11 -10 -9 -9 ------- Run | Scr Mat Mat Sto Combat Hostiles Destroyed 21 | . 4 . 17 Melee 1 | . . . 1 Guns 20 | . 4 . 16 Classes Destroyed 7 | . 4 . 3 Worker 1 | . 1 . . Builder 3 | . . . 3 Hauler 1 | . . . 1 Watcher 3 | . 1 . 2 Swarmer 9 | . 3 . 6 Grunt 7 | . 1 . 6 Sentry 5 | . . . 5 Best Kill Streak 6 | . 5 . 6 Combat Bots Only 5 | . 4 . 5 Max Kills in Single Turn 2 | . 1 . 2 Gunslinging 1 | . . . 1 Exploded . | . . . . Melee 1 | . . . 1 Uniques/NPCs Destroyed . | . . . . Combat | -11 -10 -9 -9 -------- Run | Scr Mat Mat Sto Damage Taken 1457 | . 40 . 1417 Core 413 | . 10 . 403 Absorbed by Shields . | . . . . Core Remaining (%) 98 | 100 96 . . Volleys Fired 65 | . 8 . 57 Largest 3 | . 2 . 3 Hottest 69 | . 46 . 69 Shots Fired 187 | . 16 . 171 Gun 187 | . 16 . 171 Cannon . | . . . . Launcher . | . . . . Special . | . . . . Kinetic 187 | . 16 . 171 Thermal . | . . . . Explosive . | . . . . Electromagnetic . | . . . . Robot Hit Streak 8 | . 7 . 8 Robot Miss Streak 5 | . 2 . 5 Penetration Max . | . . . . Secondary Targets 5 | . . . 5 Max Gunslinging Chain 1 | . . . 1 Shots Hit Robots 108 | . 8 . 100 Core Hits 38 | . 6 . 32 Critical Hits 1 | . . . 1 Critical Kills . | . . . . Critical Parts Destroyed 1 | . . . 1 Melee Attacks . | . . . . Impact . | . . . . Slashing . | . . . . Piercing . | . . . . Sneak Attacks . | . . . . Combat Hostiles . | . . . . Follow-up Attacks . | . . . . Damage Inflicted 1206 | . 146 . 1060 Guns 1189 | . 146 . 1043 Cannons . | . . . . Explosions . | . . . . Melee . | . . . . Ramming 17 | . . . 17 Kinetic 1189 | . 146 . 1043 Thermal . | . . . . Explosive . | . . . . Electromagnetic . | . . . . Impact . | . . . . Slashing . | . . . . Piercing . | . . . . Highest Corruption 2 | . 2 . . Average Corruption 2 | . 2 . . Corruption Purged . | . . . . Overload Shots . | . . . . Overflow Damage . | . . . . Projectiles . | . . . . Explosions . | . . . . Melee . | . . . . Knockbacks . | . . . . Impact . | . . . . Kinetic . | . . . . Secondary . | . . . . Self-Inflicted Damage 8 | . . . 8 Shots . | . . . . Rammed 1 | . . . 1 Targets Rammed 1 | . . . 1 Kicked . | . . . . Crushed . | . . . . Highest Temperature 219 | . 12 . 219 Average Temperature 48 | . 5 . 51 Received Heat Transfer 441 | . 6 . 435 Siege Activations . | . . . . Robots Corrupted . | . . . . Combat Hostiles . | . . . . Parts Fried . | . . . . Impact Corruptions . | . . . . Robots Melted . | . . . . Combat Hostiles . | . . . . Parts Melted . | . . . . Heat Transferred . | . . . . Parts Sabotaged . | . . . . Parts Stolen . | . . . . Parts Stripped . | . . . . Power Chain Reactions . | . . . . Missiles Intercepted . | . . . . Alert | -11 -10 -9 -9 ------- Run | Scr Mat Mat Sto Peak Influence 346 | . 128 5 346 Average Influence 78 | . 29 5 123 Maximum Alert Level 1 | . . . 1 Low Security (%) 88 | 100 100 100 80 Level 1 11 | . . . 19 Level 2 . | . . . . Level 3 . | . . . . Level 4 . | . . . . Level 5 . | . . . . High Security . | . . . . Max Security . | . . . . Squads Dispatched 3 | . . . 3 Investigation 2 | . . . 2 Extermination . | . . . . Reinforcement 1 | . . . 1 Assault . | . . . . Garrison . | . . . . Intercept . | . . . . Construction Impeded . | . . . . Haulers Reinforced . | . . . . Stealth | -11 -10 -9 -9 --------- Run | Scr Mat Mat Sto Distress Signals 2 | . . . 2 Communications Jammed . | . . . . Distress Signals . | . . . . Times Spotted 35 | . 9 . 26 Peak Tracking Total 6 | . 3 . 6 Tactical Retreats . | . . . . Traps | -11 -10 -9 -9 ------- Run | Scr Mat Mat Sto Traps Triggered 2 | . 1 . 1 Indirectly . | . . . . Trap Hack Attempts . | . . . . Triggered . | . . . . Disarmed . | . . . . Reprogrammed . | . . . . Reused . | . . . . Traps Extracted . | . . . . Installed . | . . . . Triggered . | . . . . Machines | -11 -10 -9 -9 ---------- Run | Scr Mat Mat Sto Machines Disabled 3 | . . . 3 Max in Single Turn 1 | . . . 1 Machines Sabotaged . | . . . . Garrisons Compromised . | . . . . Overloaded Fab Kills . | . . . . Fab Network Shutdowns . | . . . . Hacking | -11 -10 -9 -9 --------- Run | Scr Mat Mat Sto Machines Accessed 10 | . 4 1 5 Terminals 8 | . 3 1 4 Fabricators . | . . . . Repair Stations 1 | . . . 1 Recycling Units 1 | . 1 . . Scanalyzers . | . . . . Garrison Access . | . . . . Total Hacks 23 | . 12 3 8 Successful 16 | . 10 3 3 Failed 7 | . 2 . 5 Catastrophic . | . . . . Database Lockouts . | . . . . Manual 6 | . 3 . 3 Terminals 20 | . 10 3 7 Fabricators . | . . . . Repair Stations 1 | . . . 1 Recycling Units 2 | . 2 . . Scanalyzers . | . . . . Garrison Access . | . . . . Terminal Hacks 14 | . 8 3 3 Record 8 | . 5 3 . Open Door 1 | . . . 1 Branch Access Points 1 | . . . 1 Unreport Threat 2 | . 1 . 1 Recall Investigation 1 | . 1 . . Hauler Manifests 1 | . 1 . . Fabricator Hacks . | . . . . Repair Station Hacks . | . . . . Recycling Unit Hacks 2 | . 2 . . Report Inventory 1 | . 1 . . Retrieve Matter 1 | . 1 . . Scanalyzer . | . . . . Garrison Access Hacks . | . . . . Unauthorized Hacks . | . . . . Terminals . | . . . . Fabricators . | . . . . Repair Stations . | . . . . Recycling Units . | . . . . Scanalyzers . | . . . . Garrison Access . | . . . . Data Cores Recovered . | . . . . Used . | . . . . Hacking Detections 8 | . 3 1 4 Full Trace Events 1 | . . . 1 Feedback Events . | . . . . Feedback Blocked . | . . . . Robot Schematics Acquired . | . . . . Robots Built . | . . . . Matter . | . . . . Time . | . . . . Total Robot Build Rating . | . . . . Part Schematics Acquired . | . . . . Parts Built . | . . . . Matter . | . . . . Time . | . . . . Total Part Build Rating . | . . . . Parts Repaired . | . . . . Time . | . . . . Parts Recycled . | . . . . Recycled Matter . | . . . . Retrieved Matter . | . . . . Retrieved Components . | . . . . Parts Scanalyzed . | . . . . Part Schematics Acquired . | . . . . Parts Damaged . | . . . . Bothacking | -11 -10 -9 -9 ------------ Run | Scr Mat Mat Sto Used RIF Installer . | . . . . Robots Hacked . | . . . . Non-combat . | . . . . Combat . | . . . . Robot Hacks Applied . | . . . . Relay Couplers Released . | . . . . Robots Rewired . | . . . . Allies Hacked . | . . . . Hacks Repelled . | . . . . Allies | -11 -10 -9 -9 -------- Run | Scr Mat Mat Sto Total Allies . | . . . . Largest Group . | . . . . Highest-Rated Group . | . . . . Highest-Rated Ally . | . . . . Total Orders . | . . . . Ally Attacks . | . . . . Total Damage . | . . . . Kills . | . . . . Allies Corrupted . | . . . . Allies Melted . | . . . . Intel | -11 -10 -9 -9 ------- Run | Scr Mat Mat Sto Robot Analysis Total . | . . . . Derelict Logs Recovered . | . . . . Drone Launches . | . . . . Drone Recoveries . | . . . . Exploration | -11 -10 -9 -9 ------------- Run | Scr Mat Mat Sto Turns Passed 1605 | 75 554 90 886 Spaces Moved 935 | 51 328 74 482 Core 14 | 7 . . 7 Treads . | . . . . Legs 921 | 44 328 74 475 Wheels . | . . . . Hover . | . . . . Flight . | . . . . Fastest Speed 50 | 50 120 120 120 Average Speed 141 | 110 141 120 147 Slowest Speed 400 | 120 150 120 400 Overloaded Moves . | . . . . Propulsion Burnouts . | . . . . Robots Hopped . | . . . . Cave-ins Triggered . | . . . . Exploration Rate (%) 36 | 3 57 8 78 Regions Visited 3 Branch Regions 1 Pre-discovered Areas . | . . . . Known Exits Taken . | . . . . Unknown Exits Taken 3 | 1 1 1 . Scrap Searched . | . . . . Spaces Dug . | . . . . Terrain Destroyed . | . . . . Melee . | . . . . Projectile . | . . . . AOE . | . . . . Actions | -11 -10 -9 -9 --------- Run | Scr Mat Mat Sto Total 1120 | 70 408 75 567 Wait 58 | . 47 . 11 Move 932 | 50 327 73 482 Hop . | . . . . Pick Up 29 | 12 13 . 4 Fast Attach 3 | . 1 . 2 Attach 14 | 6 3 2 3 Detach . | . . . . Swap 2 | . 1 . 1 Drop 16 | 2 8 . 6 Fire 65 | . 8 . 57 Melee . | . . . . Ram . | . . . . Kick 1 | . . . 1 Crush . | . . . . Escape Stasis . | . . . . Rewire . | . . . . Trap . | . . . . Miscellaneous . | . . . . Route ------- -11/Scrapyard -10/Materials (discovered 2 exits: *Mat / [*Min]) -9/Materials -9/Storage (discovered 2 exits: [*Mat] / Rec) History --------- Turn | Location | Event 26 | -11/Scrapyard | Discovered new exit (range 13) 76 | -11/Scrapyard | Entered Materials 319 | -10/Materials | Build established: Mutant 526 | -10/Materials | Discovered new exit (range 11) 615 | -10/Materials | Discovered new exit (range 11) 630 | -10/Materials | Entered another Materials area 630 | -9/Materials | Evolved 2 slots: Propulsion x1, Weapon x1 632 | -9/Materials | Discovered new exit (range 7) 720 | -9/Materials | Entered Storage 924 | -9/Storage | Build established: Gunner 1256 | -9/Storage | Identified exit to Recycling 1574 | -9/Storage | Discovered new exit (range 14) 1589 | -9/Storage | Core integrity fell below 50% 1601 | -9/Storage | Core integrity fell below 20% 1606 | -9/Storage | Destroyed by Y-45 Defender with Heavy Assault Rifle Last Messages --------------- ALERT: Hostiles spotted, dispatching reinforcements to Terminal S011. A-02 Transporter sends out distress signal. G-34 Mercenary destroyed. Aluminum Leg destroyed. Slammed into G-34 Mercenary. G-34 Mercenary destroyed. [Achievement: Fist Fight] Lgt. Assault Rifle destroyed. Acquired 31 matter. EXIT=FOUND U-05 Engineer lays Concrete. Autogun destroyed. Aluminum Leg destroyed. Imp. Ion Engine destroyed. Aluminum Leg destroyed. Autogun destroyed. U-05 Engineer lays Concrete. U-05 Engineer destroyed. Lgt. Ion Engine destroyed. Acquired 10 matter. Map ----- +----------------------------------------------------+ | | | | | | | | | | | | | | | | | | | | | | | | | | | | | | | | | | | ???????????????????????????????? | | ???????????????????????????????? | | ???????????????????????????????? | | ???????????????????????????????? | | ???????????????????????????????? | | ??????#####????????????????????? | | ??????# #????????????????????? | | ??????# < #????????????????????? | | ??????#@ #????????????????????? | | ??????#! #????????????????????? | | ??????# | #????????????????????? | | ??????+= #????????????????????? | | ??????# #????????????????????? | | ??????# #????????????????????? | | ??????# #????????????????????? | | ??????# +????????????????????? | | ??????# #????????????????????? | | ??????# #????????????????????? | | ####### #????????????????????? | | # #gY #????????????????????? | | # # #????????????????????? | | # + #????????????????????? | | # # #????????????????????? | | # """ # Y #????????????????????? | | # """ + ####?????????????????? | | # """ # # ?????????????????? | | # # # "?????????????????? | | # """ # # "??????#??????????? | | # """ # # "????? #??????????? | | # """ # # """""" #??????????? | | # # # #??????????? | | ??## ## / ##########+# | | ???##?# # * = + | +----------------------------------------------------+ Best States ------------- Heat Dissipation 28 Energy Generation 12 Energy Capacity 265 Matter Stores 300 Matter Capacity 300 Sight Range 16 Terrain Scan Density 60 Evasion (%) 50 Targeting Accuracy 6 Item Schematics ----------------- None Robot Schematics ------------------ None Fabricated ------------ Nothing Alien Tech Used ----------------- None Achievements -------------- Fist Fight One Hack Too Far Shopping List Challenges ------------ None Game ------ Seed VortexDroneScrap Manual? 0 Play Time 00:34:48 Cumulative 9.4 hours Start 2020.08.13 @ 21:47:29 End 2020.08.13 @ 22:36:41 Sessions 1 Manual Loads 0 Difficulty Rogue Special Mode None Game No. 13 Rogue 13 Adventurer 0 Explorer 0 Win Type - Total 0 Types 0/0/0/0/0/0/0 Lore% 7 Gallery% 14 Achievement% 8 Wizard Run 0 Options --------- ASCII 0 Keyboard 0 Movement Numpad Keybinds 0 Fullscreen 1 Font 12/Smallcaps Map View 83x54 Tactical HUD 0 Map Filters NONE Filters NONE Steam 1 RUN: ea0589f5-32e2-4933-8b74-8143b55db02e